Workbook

Sheet Resonanzen
A1: Schallgeschwindigkeit c in m/s | C1: 340
A2: Länge in m | C2: 1
A4: fest - fest | C4: fest - offen/lose | E4: lose/lose
A14: Grund-/Oberwelle | B14: λ in m | C14: f in Hz
A15: 0 | B15: =IF($E$17,4*laenge/(2*A15+1),2*laenge/($A15+1)) -> 2 | C15: =$C$1/B15 -> 170 | E15: TRUE
A16: 1 | B16: =IF($E$17,4*laenge/(2*A16+1),2*laenge/($A16+1)) -> 1 | C16: =$C$1/B16 -> 340
A17: 2 | B17: =IF($E$17,4*laenge/(2*A17+1),2*laenge/($A17+1)) -> 0.6666666667 | C17: 510 | E17: FALSE
A18: 3 | B18: =IF($E$17,4*laenge/(2*A18+1),2*laenge/($A18+1)) -> 0.5 | C18: 680
A19: 4 | B19: =IF($E$17,4*laenge/(2*A19+1),2*laenge/($A19+1)) -> 0.4 | C19: 850 | E19: FALSE
A21: Beim Auswählen einer Zelle in der Frequenzspalte erklingt die Frequenz als Ton!

Sheet Daten
A1: Länge | B1: 1
A3: n | B3: 0 | C3: 1 | D3: 2 | E3: 3 | F3: 4
A4: lambda | B4: =Resonanzen!B15 -> 2 | C4: =Resonanzen!B16 -> 1 | D4: =Resonanzen!B17 -> 0.6666666667 | E4: =Resonanzen!B18 -> 0.5 | F4: =Resonanzen!B19 -> 0.4
A6: x | B6: u(x)
A7: 0 | B7: =IF(Resonanzen!$E$19,COS($A7*2*PI()/B$4),SIN($A7*2*PI()/B$4)) -> 0 | C7: =IF(Resonanzen!$E$19,COS($A7*2*PI()/C$4),SIN($A7*2*PI()/C$4)) -> 0 | D7: =IF(Resonanzen!$E$19,COS($A7*2*PI()/D$4),SIN($A7*2*PI()/D$4)) -> 0 | E7: =IF(Resonanzen!$E$19,COS($A7*2*PI()/E$4),SIN($A7*2*PI()/E$4)) -> 0 | F7: =IF(Resonanzen!$E$19,COS($A7*2*PI()/F$4),SIN($A7*2*PI()/F$4)) -> 0
A8: =A7+Resonanzen!$C$2/50 -> 0.02 | B8: =IF(Resonanzen!$E$19,COS($A8*2*PI()/B$4),SIN($A8*2*PI()/B$4)) -> 0.06279051953 | C8: =IF(Resonanzen!$E$19,COS($A8*2*PI()/C$4),SIN($A8*2*PI()/C$4)) -> 0.1253332336 | D8: =IF(Resonanzen!$E$19,COS($A8*2*PI()/D$4),SIN($A8*2*PI()/D$4)) -> 0.1873813146 | E8: =IF(Resonanzen!$E$19,COS($A8*2*PI()/E$4),SIN($A8*2*PI()/E$4)) -> 0.2486898872 | F8: =IF(Resonanzen!$E$19,COS($A8*2*PI()/F$4),SIN($A8*2*PI()/F$4)) -> 0.3090169944
A9: =A8+Resonanzen!$C$2/50 -> 0.04 | B9: =IF(Resonanzen!$E$19,COS($A9*2*PI()/B$4),SIN($A9*2*PI()/B$4)) -> 0.1253332336 | C9: =IF(Resonanzen!$E$19,COS($A9*2*PI()/C$4),SIN($A9*2*PI()/C$4)) -> 0.2486898872 | D9: =IF(Resonanzen!$E$19,COS($A9*2*PI()/D$4),SIN($A9*2*PI()/D$4)) -> 0.3681245527 | E9: =IF(Resonanzen!$E$19,COS($A9*2*PI()/E$4),SIN($A9*2*PI()/E$4)) -> 0.4817536741 | F9: =IF(Resonanzen!$E$19,COS($A9*2*PI()/F$4),SIN($A9*2*PI()/F$4)) -> 0.5877852523
A10: =A9+Resonanzen!$C$2/50 -> 0.06 | B10: =IF(Resonanzen!$E$19,COS($A10*2*PI()/B$4),SIN($A10*2*PI()/B$4)) -> 0.1873813146 | C10: =IF(Resonanzen!$E$19,COS($A10*2*PI()/C$4),SIN($A10*2*PI()/C$4)) -> 0.3681245527 | D10: =IF(Resonanzen!$E$19,COS($A10*2*PI()/D$4),SIN($A10*2*PI()/D$4)) -> 0.535826795 | E10: =IF(Resonanzen!$E$19,COS($A10*2*PI()/E$4),SIN($A10*2*PI()/E$4)) -> 0.6845471059 | F10: =IF(Resonanzen!$E$19,COS($A10*2*PI()/F$4),SIN($A10*2*PI()/F$4)) -> 0.8090169944
A11: =A10+Resonanzen!$C$2/50 -> 0.08 | B11: =IF(Resonanzen!$E$19,COS($A11*2*PI()/B$4),SIN($A11*2*PI()/B$4)) -> 0.2486898872 | C11: =IF(Resonanzen!$E$19,COS($A11*2*PI()/C$4),SIN($A11*2*PI()/C$4)) -> 0.4817536741 | D11: =IF(Resonanzen!$E$19,COS($A11*2*PI()/D$4),SIN($A11*2*PI()/D$4)) -> 0.6845471059 | E11: =IF(Resonanzen!$E$19,COS($A11*2*PI()/E$4),SIN($A11*2*PI()/E$4)) -> 0.8443279255 | F11: =IF(Resonanzen!$E$19,COS($A11*2*PI()/F$4),SIN($A11*2*PI()/F$4)) -> 0.9510565163
A12: =A11+Resonanzen!$C$2/50 -> 0.1 | B12: =IF(Resonanzen!$E$19,COS($A12*2*PI()/B$4),SIN($A12*2*PI()/B$4)) -> 0.3090169944 | C12: =IF(Resonanzen!$E$19,COS($A12*2*PI()/C$4),SIN($A12*2*PI()/C$4)) -> 0.5877852523 | D12: =IF(Resonanzen!$E$19,COS($A12*2*PI()/D$4),SIN($A12*2*PI()/D$4)) -> 0.8090169944 | E12: =IF(Resonanzen!$E$19,COS($A12*2*PI()/E$4),SIN($A12*2*PI()/E$4)) -> 0.9510565163 | F12: =IF(Resonanzen!$E$19,COS($A12*2*PI()/F$4),SIN($A12*2*PI()/F$4)) -> 1
A13: =A12+Resonanzen!$C$2/50 -> 0.12 | B13: =IF(Resonanzen!$E$19,COS($A13*2*PI()/B$4),SIN($A13*2*PI()/B$4)) -> 0.3681245527 | C13: =IF(Resonanzen!$E$19,COS($A13*2*PI()/C$4),SIN($A13*2*PI()/C$4)) -> 0.6845471059 | D13: =IF(Resonanzen!$E$19,COS($A13*2*PI()/D$4),SIN($A13*2*PI()/D$4)) -> 0.9048270525 | E13: =IF(Resonanzen!$E$19,COS($A13*2*PI()/E$4),SIN($A13*2*PI()/E$4)) -> 0.9980267284 | F13: =IF(Resonanzen!$E$19,COS($A13*2*PI()/F$4),SIN($A13*2*PI()/F$4)) -> 0.9510565163
A14: =A13+Resonanzen!$C$2/50 -> 0.14 | B14: =IF(Resonanzen!$E$19,COS($A14*2*PI()/B$4),SIN($A14*2*PI()/B$4)) -> 0.4257792916 | C14: =IF(Resonanzen!$E$19,COS($A14*2*PI()/C$4),SIN($A14*2*PI()/C$4)) -> 0.7705132428 | D14: =IF(Resonanzen!$E$19,COS($A14*2*PI()/D$4),SIN($A14*2*PI()/D$4)) -> 0.9685831611 | E14: =IF(Resonanzen!$E$19,COS($A14*2*PI()/E$4),SIN($A14*2*PI()/E$4)) -> 0.9822872507 | F14: =IF(Resonanzen!$E$19,COS($A14*2*PI()/F$4),SIN($A14*2*PI()/F$4)) -> 0.8090169944
A15: =A14+Resonanzen!$C$2/50 -> 0.16 | B15: =IF(Resonanzen!$E$19,COS($A15*2*PI()/B$4),SIN($A15*2*PI()/B$4)) -> 0.4817536741 | C15: =IF(Resonanzen!$E$19,COS($A15*2*PI()/C$4),SIN($A15*2*PI()/C$4)) -> 0.8443279255 | D15: =IF(Resonanzen!$E$19,COS($A15*2*PI()/D$4),SIN($A15*2*PI()/D$4)) -> 0.9980267284 | E15: =IF(Resonanzen!$E$19,COS($A15*2*PI()/E$4),SIN($A15*2*PI()/E$4)) -> 0.9048270525 | F15: =IF(Resonanzen!$E$19,COS($A15*2*PI()/F$4),SIN($A15*2*PI()/F$4)) -> 0.5877852523
A16: =A15+Resonanzen!$C$2/50 -> 0.18 | B16: =IF(Resonanzen!$E$19,COS($A16*2*PI()/B$4),SIN($A16*2*PI()/B$4)) -> 0.535826795 | C16: =IF(Resonanzen!$E$19,COS($A16*2*PI()/C$4),SIN($A16*2*PI()/C$4)) -> 0.9048270525 | D16: =IF(Resonanzen!$E$19,COS($A16*2*PI()/D$4),SIN($A16*2*PI()/D$4)) -> 0.9921147013 | E16: =IF(Resonanzen!$E$19,COS($A16*2*PI()/E$4),SIN($A16*2*PI()/E$4)) -> 0.7705132428 | F16: =IF(Resonanzen!$E$19,COS($A16*2*PI()/F$4),SIN($A16*2*PI()/F$4)) -> 0.3090169944
A17: =A16+Resonanzen!$C$2/50 -> 0.2 | B17: =IF(Resonanzen!$E$19,COS($A17*2*PI()/B$4),SIN($A17*2*PI()/B$4)) -> 0.5877852523 | C17: =IF(Resonanzen!$E$19,COS($A17*2*PI()/C$4),SIN($A17*2*PI()/C$4)) -> 0.9510565163 | D17: =IF(Resonanzen!$E$19,COS($A17*2*PI()/D$4),SIN($A17*2*PI()/D$4)) -> 0.9510565163 | E17: =IF(Resonanzen!$E$19,COS($A17*2*PI()/E$4),SIN($A17*2*PI()/E$4)) -> 0.5877852523 | F17: =IF(Resonanzen!$E$19,COS($A17*2*PI()/F$4),SIN($A17*2*PI()/F$4)) -> 1.225148455e-16
A18: =A17+Resonanzen!$C$2/50 -> 0.22 | B18: =IF(Resonanzen!$E$19,COS($A18*2*PI()/B$4),SIN($A18*2*PI()/B$4)) -> 0.6374239897 | C18: =IF(Resonanzen!$E$19,COS($A18*2*PI()/C$4),SIN($A18*2*PI()/C$4)) -> 0.9822872507 | D18: =IF(Resonanzen!$E$19,COS($A18*2*PI()/D$4),SIN($A18*2*PI()/D$4)) -> 0.87630668 | E18: =IF(Resonanzen!$E$19,COS($A18*2*PI()/E$4),SIN($A18*2*PI()/E$4)) -> 0.3681245527 | F18: =IF(Resonanzen!$E$19,COS($A18*2*PI()/F$4),SIN($A18*2*PI()/F$4)) -> -0.3090169944
A19: =A18+Resonanzen!$C$2/50 -> 0.24 | B19: =IF(Resonanzen!$E$19,COS($A19*2*PI()/B$4),SIN($A19*2*PI()/B$4)) -> 0.6845471059 | C19: =IF(Resonanzen!$E$19,COS($A19*2*PI()/C$4),SIN($A19*2*PI()/C$4)) -> 0.9980267284 | D19: =IF(Resonanzen!$E$19,COS($A19*2*PI()/D$4),SIN($A19*2*PI()/D$4)) -> 0.7705132428 | E19: =IF(Resonanzen!$E$19,COS($A19*2*PI()/E$4),SIN($A19*2*PI()/E$4)) -> 0.1253332336 | F19: =IF(Resonanzen!$E$19,COS($A19*2*PI()/F$4),SIN($A19*2*PI()/F$4)) -> -0.5877852523
A20: =A19+Resonanzen!$C$2/50 -> 0.26 | B20: =IF(Resonanzen!$E$19,COS($A20*2*PI()/B$4),SIN($A20*2*PI()/B$4)) -> 0.7289686274 | C20: =IF(Resonanzen!$E$19,COS($A20*2*PI()/C$4),SIN($A20*2*PI()/C$4)) -> 0.9980267284 | D20: =IF(Resonanzen!$E$19,COS($A20*2*PI()/D$4),SIN($A20*2*PI()/D$4)) -> 0.6374239897 | E20: =IF(Resonanzen!$E$19,COS($A20*2*PI()/E$4),SIN($A20*2*PI()/E$4)) -> -0.1253332336 | F20: =IF(Resonanzen!$E$19,COS($A20*2*PI()/F$4),SIN($A20*2*PI()/F$4)) -> -0.8090169944
A21: =A20+Resonanzen!$C$2/50 -> 0.28 | B21: =IF(Resonanzen!$E$19,COS($A21*2*PI()/B$4),SIN($A21*2*PI()/B$4)) -> 0.7705132428 | C21: =IF(Resonanzen!$E$19,COS($A21*2*PI()/C$4),SIN($A21*2*PI()/C$4)) -> 0.9822872507 | D21: =IF(Resonanzen!$E$19,COS($A21*2*PI()/D$4),SIN($A21*2*PI()/D$4)) -> 0.4817536741 | E21: =IF(Resonanzen!$E$19,COS($A21*2*PI()/E$4),SIN($A21*2*PI()/E$4)) -> -0.3681245527 | F21: =IF(Resonanzen!$E$19,COS($A21*2*PI()/F$4),SIN($A21*2*PI()/F$4)) -> -0.9510565163
A22: =A21+Resonanzen!$C$2/50 -> 0.3 | B22: =IF(Resonanzen!$E$19,COS($A22*2*PI()/B$4),SIN($A22*2*PI()/B$4)) -> 0.8090169944 | C22: =IF(Resonanzen!$E$19,COS($A22*2*PI()/C$4),SIN($A22*2*PI()/C$4)) -> 0.9510565163 | D22: =IF(Resonanzen!$E$19,COS($A22*2*PI()/D$4),SIN($A22*2*PI()/D$4)) -> 0.3090169944 | E22: =IF(Resonanzen!$E$19,COS($A22*2*PI()/E$4),SIN($A22*2*PI()/E$4)) -> -0.5877852523 | F22: =IF(Resonanzen!$E$19,COS($A22*2*PI()/F$4),SIN($A22*2*PI()/F$4)) -> -1
A23: =A22+Resonanzen!$C$2/50 -> 0.32 | B23: =IF(Resonanzen!$E$19,COS($A23*2*PI()/B$4),SIN($A23*2*PI()/B$4)) -> 0.8443279255 | C23: =IF(Resonanzen!$E$19,COS($A23*2*PI()/C$4),SIN($A23*2*PI()/C$4)) -> 0.9048270525 | D23: =IF(Resonanzen!$E$19,COS($A23*2*PI()/D$4),SIN($A23*2*PI()/D$4)) -> 0.1253332336 | E23: =IF(Resonanzen!$E$19,COS($A23*2*PI()/E$4),SIN($A23*2*PI()/E$4)) -> -0.7705132428 | F23: =IF(Resonanzen!$E$19,COS($A23*2*PI()/F$4),SIN($A23*2*PI()/F$4)) -> -0.9510565163
A24: =A23+Resonanzen!$C$2/50 -> 0.34 | B24: =IF(Resonanzen!$E$19,COS($A24*2*PI()/B$4),SIN($A24*2*PI()/B$4)) -> 0.87630668 | C24: =IF(Resonanzen!$E$19,COS($A24*2*PI()/C$4),SIN($A24*2*PI()/C$4)) -> 0.8443279255 | D24: =IF(Resonanzen!$E$19,COS($A24*2*PI()/D$4),SIN($A24*2*PI()/D$4)) -> -0.06279051953 | E24: =IF(Resonanzen!$E$19,COS($A24*2*PI()/E$4),SIN($A24*2*PI()/E$4)) -> -0.9048270525 | F24: =IF(Resonanzen!$E$19,COS($A24*2*PI()/F$4),SIN($A24*2*PI()/F$4)) -> -0.8090169944
A25: =A24+Resonanzen!$C$2/50 -> 0.36 | B25: =IF(Resonanzen!$E$19,COS($A25*2*PI()/B$4),SIN($A25*2*PI()/B$4)) -> 0.9048270525 | C25: =IF(Resonanzen!$E$19,COS($A25*2*PI()/C$4),SIN($A25*2*PI()/C$4)) -> 0.7705132428 | D25: =IF(Resonanzen!$E$19,COS($A25*2*PI()/D$4),SIN($A25*2*PI()/D$4)) -> -0.2486898872 | E25: =IF(Resonanzen!$E$19,COS($A25*2*PI()/E$4),SIN($A25*2*PI()/E$4)) -> -0.9822872507 | F25: =IF(Resonanzen!$E$19,COS($A25*2*PI()/F$4),SIN($A25*2*PI()/F$4)) -> -0.5877852523
A26: =A25+Resonanzen!$C$2/50 -> 0.38 | B26: =IF(Resonanzen!$E$19,COS($A26*2*PI()/B$4),SIN($A26*2*PI()/B$4)) -> 0.9297764859 | C26: =IF(Resonanzen!$E$19,COS($A26*2*PI()/C$4),SIN($A26*2*PI()/C$4)) -> 0.6845471059 | D26: =IF(Resonanzen!$E$19,COS($A26*2*PI()/D$4),SIN($A26*2*PI()/D$4)) -> -0.4257792916 | E26: =IF(Resonanzen!$E$19,COS($A26*2*PI()/E$4),SIN($A26*2*PI()/E$4)) -> -0.9980267284 | F26: =IF(Resonanzen!$E$19,COS($A26*2*PI()/F$4),SIN($A26*2*PI()/F$4)) -> -0.3090169944
A27: =A26+Resonanzen!$C$2/50 -> 0.4 | B27: =IF(Resonanzen!$E$19,COS($A27*2*PI()/B$4),SIN($A27*2*PI()/B$4)) -> 0.9510565163 | C27: =IF(Resonanzen!$E$19,COS($A27*2*PI()/C$4),SIN($A27*2*PI()/C$4)) -> 0.5877852523 | D27: =IF(Resonanzen!$E$19,COS($A27*2*PI()/D$4),SIN($A27*2*PI()/D$4)) -> -0.5877852523 | E27: =IF(Resonanzen!$E$19,COS($A27*2*PI()/E$4),SIN($A27*2*PI()/E$4)) -> -0.9510565163 | F27: =IF(Resonanzen!$E$19,COS($A27*2*PI()/F$4),SIN($A27*2*PI()/F$4)) -> 6.431487287e-16
A28: =A27+Resonanzen!$C$2/50 -> 0.42 | B28: =IF(Resonanzen!$E$19,COS($A28*2*PI()/B$4),SIN($A28*2*PI()/B$4)) -> 0.9685831611 | C28: =IF(Resonanzen!$E$19,COS($A28*2*PI()/C$4),SIN($A28*2*PI()/C$4)) -> 0.4817536741 | D28: =IF(Resonanzen!$E$19,COS($A28*2*PI()/D$4),SIN($A28*2*PI()/D$4)) -> -0.7289686274 | E28: =IF(Resonanzen!$E$19,COS($A28*2*PI()/E$4),SIN($A28*2*PI()/E$4)) -> -0.8443279255 | F28: =IF(Resonanzen!$E$19,COS($A28*2*PI()/F$4),SIN($A28*2*PI()/F$4)) -> 0.3090169944
A29: =A28+Resonanzen!$C$2/50 -> 0.44 | B29: =IF(Resonanzen!$E$19,COS($A29*2*PI()/B$4),SIN($A29*2*PI()/B$4)) -> 0.9822872507 | C29: =IF(Resonanzen!$E$19,COS($A29*2*PI()/C$4),SIN($A29*2*PI()/C$4)) -> 0.3681245527 | D29: =IF(Resonanzen!$E$19,COS($A29*2*PI()/D$4),SIN($A29*2*PI()/D$4)) -> -0.8443279255 | E29: =IF(Resonanzen!$E$19,COS($A29*2*PI()/E$4),SIN($A29*2*PI()/E$4)) -> -0.6845471059 | F29: =IF(Resonanzen!$E$19,COS($A29*2*PI()/F$4),SIN($A29*2*PI()/F$4)) -> 0.5877852523
A30: =A29+Resonanzen!$C$2/50 -> 0.46 | B30: =IF(Resonanzen!$E$19,COS($A30*2*PI()/B$4),SIN($A30*2*PI()/B$4)) -> 0.9921147013 | C30: =IF(Resonanzen!$E$19,COS($A30*2*PI()/C$4),SIN($A30*2*PI()/C$4)) -> 0.2486898872 | D30: =IF(Resonanzen!$E$19,COS($A30*2*PI()/D$4),SIN($A30*2*PI()/D$4)) -> -0.9297764859 | E30: =IF(Resonanzen!$E$19,COS($A30*2*PI()/E$4),SIN($A30*2*PI()/E$4)) -> -0.4817536741 | F30: =IF(Resonanzen!$E$19,COS($A30*2*PI()/F$4),SIN($A30*2*PI()/F$4)) -> 0.8090169944
A31: =A30+Resonanzen!$C$2/50 -> 0.48 | B31: =IF(Resonanzen!$E$19,COS($A31*2*PI()/B$4),SIN($A31*2*PI()/B$4)) -> 0.9980267284 | C31: =IF(Resonanzen!$E$19,COS($A31*2*PI()/C$4),SIN($A31*2*PI()/C$4)) -> 0.1253332336 | D31: =IF(Resonanzen!$E$19,COS($A31*2*PI()/D$4),SIN($A31*2*PI()/D$4)) -> -0.9822872507 | E31: =IF(Resonanzen!$E$19,COS($A31*2*PI()/E$4),SIN($A31*2*PI()/E$4)) -> -0.2486898872 | F31: =IF(Resonanzen!$E$19,COS($A31*2*PI()/F$4),SIN($A31*2*PI()/F$4)) -> 0.9510565163
A32: =A31+Resonanzen!$C$2/50 -> 0.5 | B32: =IF(Resonanzen!$E$19,COS($A32*2*PI()/B$4),SIN($A32*2*PI()/B$4)) -> 1 | C32: =IF(Resonanzen!$E$19,COS($A32*2*PI()/C$4),SIN($A32*2*PI()/C$4)) -> -7.656635742e-16 | D32: =IF(Resonanzen!$E$19,COS($A32*2*PI()/D$4),SIN($A32*2*PI()/D$4)) -> -1 | E32: =IF(Resonanzen!$E$19,COS($A32*2*PI()/E$4),SIN($A32*2*PI()/E$4)) -> 1.531327148e-15 | F32: =IF(Resonanzen!$E$19,COS($A32*2*PI()/F$4),SIN($A32*2*PI()/F$4)) -> 1
A33: =A32+Resonanzen!$C$2/50 -> 0.52 | B33: =IF(Resonanzen!$E$19,COS($A33*2*PI()/B$4),SIN($A33*2*PI()/B$4)) -> 0.9980267284 | C33: =IF(Resonanzen!$E$19,COS($A33*2*PI()/C$4),SIN($A33*2*PI()/C$4)) -> -0.1253332336 | D33: =IF(Resonanzen!$E$19,COS($A33*2*PI()/D$4),SIN($A33*2*PI()/D$4)) -> -0.9822872507 | E33: =IF(Resonanzen!$E$19,COS($A33*2*PI()/E$4),SIN($A33*2*PI()/E$4)) -> 0.2486898872 | F33: =IF(Resonanzen!$E$19,COS($A33*2*PI()/F$4),SIN($A33*2*PI()/F$4)) -> 0.9510565163
A34: =A33+Resonanzen!$C$2/50 -> 0.54 | B34: =IF(Resonanzen!$E$19,COS($A34*2*PI()/B$4),SIN($A34*2*PI()/B$4)) -> 0.9921147013 | C34: =IF(Resonanzen!$E$19,COS($A34*2*PI()/C$4),SIN($A34*2*PI()/C$4)) -> -0.2486898872 | D34: =IF(Resonanzen!$E$19,COS($A34*2*PI()/D$4),SIN($A34*2*PI()/D$4)) -> -0.9297764859 | E34: =IF(Resonanzen!$E$19,COS($A34*2*PI()/E$4),SIN($A34*2*PI()/E$4)) -> 0.4817536741 | F34: =IF(Resonanzen!$E$19,COS($A34*2*PI()/F$4),SIN($A34*2*PI()/F$4)) -> 0.8090169944
A35: =A34+Resonanzen!$C$2/50 -> 0.56 | B35: =IF(Resonanzen!$E$19,COS($A35*2*PI()/B$4),SIN($A35*2*PI()/B$4)) -> 0.9822872507 | C35: =IF(Resonanzen!$E$19,COS($A35*2*PI()/C$4),SIN($A35*2*PI()/C$4)) -> -0.3681245527 | D35: =IF(Resonanzen!$E$19,COS($A35*2*PI()/D$4),SIN($A35*2*PI()/D$4)) -> -0.8443279255 | E35: =IF(Resonanzen!$E$19,COS($A35*2*PI()/E$4),SIN($A35*2*PI()/E$4)) -> 0.6845471059 | F35: =IF(Resonanzen!$E$19,COS($A35*2*PI()/F$4),SIN($A35*2*PI()/F$4)) -> 0.5877852523
A36: =A35+Resonanzen!$C$2/50 -> 0.58 | B36: =IF(Resonanzen!$E$19,COS($A36*2*PI()/B$4),SIN($A36*2*PI()/B$4)) -> 0.9685831611 | C36: =IF(Resonanzen!$E$19,COS($A36*2*PI()/C$4),SIN($A36*2*PI()/C$4)) -> -0.4817536741 | D36: =IF(Resonanzen!$E$19,COS($A36*2*PI()/D$4),SIN($A36*2*PI()/D$4)) -> -0.7289686274 | E36: =IF(Resonanzen!$E$19,COS($A36*2*PI()/E$4),SIN($A36*2*PI()/E$4)) -> 0.8443279255 | F36: =IF(Resonanzen!$E$19,COS($A36*2*PI()/F$4),SIN($A36*2*PI()/F$4)) -> 0.3090169944
A37: =A36+Resonanzen!$C$2/50 -> 0.6 | B37: =IF(Resonanzen!$E$19,COS($A37*2*PI()/B$4),SIN($A37*2*PI()/B$4)) -> 0.9510565163 | C37: =IF(Resonanzen!$E$19,COS($A37*2*PI()/C$4),SIN($A37*2*PI()/C$4)) -> -0.5877852523 | D37: =IF(Resonanzen!$E$19,COS($A37*2*PI()/D$4),SIN($A37*2*PI()/D$4)) -> -0.5877852523 | E37: =IF(Resonanzen!$E$19,COS($A37*2*PI()/E$4),SIN($A37*2*PI()/E$4)) -> 0.9510565163 | F37: =IF(Resonanzen!$E$19,COS($A37*2*PI()/F$4),SIN($A37*2*PI()/F$4)) -> -3.185169142e-15
A38: =A37+Resonanzen!$C$2/50 -> 0.62 | B38: =IF(Resonanzen!$E$19,COS($A38*2*PI()/B$4),SIN($A38*2*PI()/B$4)) -> 0.9297764859 | C38: =IF(Resonanzen!$E$19,COS($A38*2*PI()/C$4),SIN($A38*2*PI()/C$4)) -> -0.6845471059 | D38: =IF(Resonanzen!$E$19,COS($A38*2*PI()/D$4),SIN($A38*2*PI()/D$4)) -> -0.4257792916 | E38: =IF(Resonanzen!$E$19,COS($A38*2*PI()/E$4),SIN($A38*2*PI()/E$4)) -> 0.9980267284 | F38: =IF(Resonanzen!$E$19,COS($A38*2*PI()/F$4),SIN($A38*2*PI()/F$4)) -> -0.3090169944
A39: =A38+Resonanzen!$C$2/50 -> 0.64 | B39: =IF(Resonanzen!$E$19,COS($A39*2*PI()/B$4),SIN($A39*2*PI()/B$4)) -> 0.9048270525 | C39: =IF(Resonanzen!$E$19,COS($A39*2*PI()/C$4),SIN($A39*2*PI()/C$4)) -> -0.7705132428 | D39: =IF(Resonanzen!$E$19,COS($A39*2*PI()/D$4),SIN($A39*2*PI()/D$4)) -> -0.2486898872 | E39: =IF(Resonanzen!$E$19,COS($A39*2*PI()/E$4),SIN($A39*2*PI()/E$4)) -> 0.9822872507 | F39: =IF(Resonanzen!$E$19,COS($A39*2*PI()/F$4),SIN($A39*2*PI()/F$4)) -> -0.5877852523
A40: =A39+Resonanzen!$C$2/50 -> 0.66 | B40: =IF(Resonanzen!$E$19,COS($A40*2*PI()/B$4),SIN($A40*2*PI()/B$4)) -> 0.87630668 | C40: =IF(Resonanzen!$E$19,COS($A40*2*PI()/C$4),SIN($A40*2*PI()/C$4)) -> -0.8443279255 | D40: =IF(Resonanzen!$E$19,COS($A40*2*PI()/D$4),SIN($A40*2*PI()/D$4)) -> -0.06279051953 | E40: =IF(Resonanzen!$E$19,COS($A40*2*PI()/E$4),SIN($A40*2*PI()/E$4)) -> 0.9048270525 | F40: =IF(Resonanzen!$E$19,COS($A40*2*PI()/F$4),SIN($A40*2*PI()/F$4)) -> -0.8090169944
A41: =A40+Resonanzen!$C$2/50 -> 0.68 | B41: =IF(Resonanzen!$E$19,COS($A41*2*PI()/B$4),SIN($A41*2*PI()/B$4)) -> 0.8443279255 | C41: =IF(Resonanzen!$E$19,COS($A41*2*PI()/C$4),SIN($A41*2*PI()/C$4)) -> -0.9048270525 | D41: =IF(Resonanzen!$E$19,COS($A41*2*PI()/D$4),SIN($A41*2*PI()/D$4)) -> 0.1253332336 | E41: =IF(Resonanzen!$E$19,COS($A41*2*PI()/E$4),SIN($A41*2*PI()/E$4)) -> 0.7705132428 | F41: =IF(Resonanzen!$E$19,COS($A41*2*PI()/F$4),SIN($A41*2*PI()/F$4)) -> -0.9510565163
A42: =A41+Resonanzen!$C$2/50 -> 0.7 | B42: =IF(Resonanzen!$E$19,COS($A42*2*PI()/B$4),SIN($A42*2*PI()/B$4)) -> 0.8090169944 | C42: =IF(Resonanzen!$E$19,COS($A42*2*PI()/C$4),SIN($A42*2*PI()/C$4)) -> -0.9510565163 | D42: =IF(Resonanzen!$E$19,COS($A42*2*PI()/D$4),SIN($A42*2*PI()/D$4)) -> 0.3090169944 | E42: =IF(Resonanzen!$E$19,COS($A42*2*PI()/E$4),SIN($A42*2*PI()/E$4)) -> 0.5877852523 | F42: =IF(Resonanzen!$E$19,COS($A42*2*PI()/F$4),SIN($A42*2*PI()/F$4)) -> -1
A43: =A42+Resonanzen!$C$2/50 -> 0.72 | B43: =IF(Resonanzen!$E$19,COS($A43*2*PI()/B$4),SIN($A43*2*PI()/B$4)) -> 0.7705132428 | C43: =IF(Resonanzen!$E$19,COS($A43*2*PI()/C$4),SIN($A43*2*PI()/C$4)) -> -0.9822872507 | D43: =IF(Resonanzen!$E$19,COS($A43*2*PI()/D$4),SIN($A43*2*PI()/D$4)) -> 0.4817536741 | E43: =IF(Resonanzen!$E$19,COS($A43*2*PI()/E$4),SIN($A43*2*PI()/E$4)) -> 0.3681245527 | F43: =IF(Resonanzen!$E$19,COS($A43*2*PI()/F$4),SIN($A43*2*PI()/F$4)) -> -0.9510565163
A44: =A43+Resonanzen!$C$2/50 -> 0.74 | B44: =IF(Resonanzen!$E$19,COS($A44*2*PI()/B$4),SIN($A44*2*PI()/B$4)) -> 0.7289686274 | C44: =IF(Resonanzen!$E$19,COS($A44*2*PI()/C$4),SIN($A44*2*PI()/C$4)) -> -0.9980267284 | D44: =IF(Resonanzen!$E$19,COS($A44*2*PI()/D$4),SIN($A44*2*PI()/D$4)) -> 0.6374239897 | E44: =IF(Resonanzen!$E$19,COS($A44*2*PI()/E$4),SIN($A44*2*PI()/E$4)) -> 0.1253332336 | F44: =IF(Resonanzen!$E$19,COS($A44*2*PI()/F$4),SIN($A44*2*PI()/F$4)) -> -0.8090169944
A45: =A44+Resonanzen!$C$2/50 -> 0.76 | B45: =IF(Resonanzen!$E$19,COS($A45*2*PI()/B$4),SIN($A45*2*PI()/B$4)) -> 0.6845471059 | C45: =IF(Resonanzen!$E$19,COS($A45*2*PI()/C$4),SIN($A45*2*PI()/C$4)) -> -0.9980267284 | D45: =IF(Resonanzen!$E$19,COS($A45*2*PI()/D$4),SIN($A45*2*PI()/D$4)) -> 0.7705132428 | E45: =IF(Resonanzen!$E$19,COS($A45*2*PI()/E$4),SIN($A45*2*PI()/E$4)) -> -0.1253332336 | F45: =IF(Resonanzen!$E$19,COS($A45*2*PI()/F$4),SIN($A45*2*PI()/F$4)) -> -0.5877852523
A46: =A45+Resonanzen!$C$2/50 -> 0.78 | B46: =IF(Resonanzen!$E$19,COS($A46*2*PI()/B$4),SIN($A46*2*PI()/B$4)) -> 0.6374239897 | C46: =IF(Resonanzen!$E$19,COS($A46*2*PI()/C$4),SIN($A46*2*PI()/C$4)) -> -0.9822872507 | D46: =IF(Resonanzen!$E$19,COS($A46*2*PI()/D$4),SIN($A46*2*PI()/D$4)) -> 0.87630668 | E46: =IF(Resonanzen!$E$19,COS($A46*2*PI()/E$4),SIN($A46*2*PI()/E$4)) -> -0.3681245527 | F46: =IF(Resonanzen!$E$19,COS($A46*2*PI()/F$4),SIN($A46*2*PI()/F$4)) -> -0.3090169944
A47: =A46+Resonanzen!$C$2/50 -> 0.8 | B47: =IF(Resonanzen!$E$19,COS($A47*2*PI()/B$4),SIN($A47*2*PI()/B$4)) -> 0.5877852523 | C47: =IF(Resonanzen!$E$19,COS($A47*2*PI()/C$4),SIN($A47*2*PI()/C$4)) -> -0.9510565163 | D47: =IF(Resonanzen!$E$19,COS($A47*2*PI()/D$4),SIN($A47*2*PI()/D$4)) -> 0.9510565163 | E47: =IF(Resonanzen!$E$19,COS($A47*2*PI()/E$4),SIN($A47*2*PI()/E$4)) -> -0.5877852523 | F47: =IF(Resonanzen!$E$19,COS($A47*2*PI()/F$4),SIN($A47*2*PI()/F$4)) -> 4.839011136e-15
A48: =A47+Resonanzen!$C$2/50 -> 0.82 | B48: =IF(Resonanzen!$E$19,COS($A48*2*PI()/B$4),SIN($A48*2*PI()/B$4)) -> 0.535826795 | C48: =IF(Resonanzen!$E$19,COS($A48*2*PI()/C$4),SIN($A48*2*PI()/C$4)) -> -0.9048270525 | D48: =IF(Resonanzen!$E$19,COS($A48*2*PI()/D$4),SIN($A48*2*PI()/D$4)) -> 0.9921147013 | E48: =IF(Resonanzen!$E$19,COS($A48*2*PI()/E$4),SIN($A48*2*PI()/E$4)) -> -0.7705132428 | F48: =IF(Resonanzen!$E$19,COS($A48*2*PI()/F$4),SIN($A48*2*PI()/F$4)) -> 0.3090169944
A49: =A48+Resonanzen!$C$2/50 -> 0.84 | B49: =IF(Resonanzen!$E$19,COS($A49*2*PI()/B$4),SIN($A49*2*PI()/B$4)) -> 0.4817536741 | C49: =IF(Resonanzen!$E$19,COS($A49*2*PI()/C$4),SIN($A49*2*PI()/C$4)) -> -0.8443279255 | D49: =IF(Resonanzen!$E$19,COS($A49*2*PI()/D$4),SIN($A49*2*PI()/D$4)) -> 0.9980267284 | E49: =IF(Resonanzen!$E$19,COS($A49*2*PI()/E$4),SIN($A49*2*PI()/E$4)) -> -0.9048270525 | F49: =IF(Resonanzen!$E$19,COS($A49*2*PI()/F$4),SIN($A49*2*PI()/F$4)) -> 0.5877852523
A50: =A49+Resonanzen!$C$2/50 -> 0.86 | B50: =IF(Resonanzen!$E$19,COS($A50*2*PI()/B$4),SIN($A50*2*PI()/B$4)) -> 0.4257792916 | C50: =IF(Resonanzen!$E$19,COS($A50*2*PI()/C$4),SIN($A50*2*PI()/C$4)) -> -0.7705132428 | D50: =IF(Resonanzen!$E$19,COS($A50*2*PI()/D$4),SIN($A50*2*PI()/D$4)) -> 0.9685831611 | E50: =IF(Resonanzen!$E$19,COS($A50*2*PI()/E$4),SIN($A50*2*PI()/E$4)) -> -0.9822872507 | F50: =IF(Resonanzen!$E$19,COS($A50*2*PI()/F$4),SIN($A50*2*PI()/F$4)) -> 0.8090169944
A51: =A50+Resonanzen!$C$2/50 -> 0.88 | B51: =IF(Resonanzen!$E$19,COS($A51*2*PI()/B$4),SIN($A51*2*PI()/B$4)) -> 0.3681245527 | C51: =IF(Resonanzen!$E$19,COS($A51*2*PI()/C$4),SIN($A51*2*PI()/C$4)) -> -0.6845471059 | D51: =IF(Resonanzen!$E$19,COS($A51*2*PI()/D$4),SIN($A51*2*PI()/D$4)) -> 0.9048270525 | E51: =IF(Resonanzen!$E$19,COS($A51*2*PI()/E$4),SIN($A51*2*PI()/E$4)) -> -0.9980267284 | F51: =IF(Resonanzen!$E$19,COS($A51*2*PI()/F$4),SIN($A51*2*PI()/F$4)) -> 0.9510565163
A52: =A51+Resonanzen!$C$2/50 -> 0.9 | B52: =IF(Resonanzen!$E$19,COS($A52*2*PI()/B$4),SIN($A52*2*PI()/B$4)) -> 0.3090169944 | C52: =IF(Resonanzen!$E$19,COS($A52*2*PI()/C$4),SIN($A52*2*PI()/C$4)) -> -0.5877852523 | D52: =IF(Resonanzen!$E$19,COS($A52*2*PI()/D$4),SIN($A52*2*PI()/D$4)) -> 0.8090169944 | E52: =IF(Resonanzen!$E$19,COS($A52*2*PI()/E$4),SIN($A52*2*PI()/E$4)) -> -0.9510565163 | F52: =IF(Resonanzen!$E$19,COS($A52*2*PI()/F$4),SIN($A52*2*PI()/F$4)) -> 1
A53: =A52+Resonanzen!$C$2/50 -> 0.92 | B53: =IF(Resonanzen!$E$19,COS($A53*2*PI()/B$4),SIN($A53*2*PI()/B$4)) -> 0.2486898872 | C53: =IF(Resonanzen!$E$19,COS($A53*2*PI()/C$4),SIN($A53*2*PI()/C$4)) -> -0.4817536741 | D53: =IF(Resonanzen!$E$19,COS($A53*2*PI()/D$4),SIN($A53*2*PI()/D$4)) -> 0.6845471059 | E53: =IF(Resonanzen!$E$19,COS($A53*2*PI()/E$4),SIN($A53*2*PI()/E$4)) -> -0.8443279255 | F53: =IF(Resonanzen!$E$19,COS($A53*2*PI()/F$4),SIN($A53*2*PI()/F$4)) -> 0.9510565163
A54: =A53+Resonanzen!$C$2/50 -> 0.94 | B54: =IF(Resonanzen!$E$19,COS($A54*2*PI()/B$4),SIN($A54*2*PI()/B$4)) -> 0.1873813146 | C54: =IF(Resonanzen!$E$19,COS($A54*2*PI()/C$4),SIN($A54*2*PI()/C$4)) -> -0.3681245527 | D54: =IF(Resonanzen!$E$19,COS($A54*2*PI()/D$4),SIN($A54*2*PI()/D$4)) -> 0.535826795 | E54: =IF(Resonanzen!$E$19,COS($A54*2*PI()/E$4),SIN($A54*2*PI()/E$4)) -> -0.6845471059 | F54: =IF(Resonanzen!$E$19,COS($A54*2*PI()/F$4),SIN($A54*2*PI()/F$4)) -> 0.8090169944
A55: =A54+Resonanzen!$C$2/50 -> 0.96 | B55: =IF(Resonanzen!$E$19,COS($A55*2*PI()/B$4),SIN($A55*2*PI()/B$4)) -> 0.1253332336 | C55: =IF(Resonanzen!$E$19,COS($A55*2*PI()/C$4),SIN($A55*2*PI()/C$4)) -> -0.2486898872 | D55: =IF(Resonanzen!$E$19,COS($A55*2*PI()/D$4),SIN($A55*2*PI()/D$4)) -> 0.3681245527 | E55: =IF(Resonanzen!$E$19,COS($A55*2*PI()/E$4),SIN($A55*2*PI()/E$4)) -> -0.4817536741 | F55: =IF(Resonanzen!$E$19,COS($A55*2*PI()/F$4),SIN($A55*2*PI()/F$4)) -> 0.5877852523
A56: =A55+Resonanzen!$C$2/50 -> 0.98 | B56: =IF(Resonanzen!$E$19,COS($A56*2*PI()/B$4),SIN($A56*2*PI()/B$4)) -> 0.06279051953 | C56: =IF(Resonanzen!$E$19,COS($A56*2*PI()/C$4),SIN($A56*2*PI()/C$4)) -> -0.1253332336 | D56: =IF(Resonanzen!$E$19,COS($A56*2*PI()/D$4),SIN($A56*2*PI()/D$4)) -> 0.1873813146 | E56: =IF(Resonanzen!$E$19,COS($A56*2*PI()/E$4),SIN($A56*2*PI()/E$4)) -> -0.2486898872 | F56: =IF(Resonanzen!$E$19,COS($A56*2*PI()/F$4),SIN($A56*2*PI()/F$4)) -> 0.3090169944
A57: =A56+Resonanzen!$C$2/50 -> 1 | B57: =IF(Resonanzen!$E$19,COS($A57*2*PI()/B$4),SIN($A57*2*PI()/B$4)) -> -1.209752784e-15 | C57: =IF(Resonanzen!$E$19,COS($A57*2*PI()/C$4),SIN($A57*2*PI()/C$4)) -> 2.419505568e-15 | D57: =IF(Resonanzen!$E$19,COS($A57*2*PI()/D$4),SIN($A57*2*PI()/D$4)) -> -4.961525982e-15 | E57: =IF(Resonanzen!$E$19,COS($A57*2*PI()/E$4),SIN($A57*2*PI()/E$4)) -> 4.839011136e-15 | F57: =IF(Resonanzen!$E$19,COS($A57*2*PI()/F$4),SIN($A57*2*PI()/F$4)) -> -4.716496291e-15
